[Event "IV Elllobregat Open Chess Tmnt"]
[Site "Sant Boi de Llobregat, Spain"]
[Date "2023.11.30"]
[Round "1.55"]
[White "Nurgaliyev, Sauat"]
[Black "Escobar Forero, Alder"]
[Result "1/2-1/2"]
[TimeControl "90min/40moves + 15min/end + 30sec from move 1"]
[WhiteFideId "13726285"]
[BlackFideId "4400801"]
[WhiteElo "2235"]
[BlackElo "2450"]

1. e4 {[%emt 00:00:45]} c5 {[%emt 00:00:08]} 2. Nf3 {[%emt 00:00:06]} a6 {[%emt
00:00:04]} 3. c3 {[%emt 00:02:00]} d5 {[%emt 00:00:37]} 4. exd5 {[%emt
00:00:41]} Qxd5 {[%emt 00:00:09]} 5. d4 {[%emt 00:00:09]} e6 {[%emt 00:00:34]}
6. Be3 {[%emt 00:03:47]} Nd7 {[%emt 00:00:08]} 7. c4 {[%emt 00:02:41]} Qd6
{[%emt 00:00:37]} 8. Nc3 {[%emt 00:02:00]} Ngf6 {[%emt 00:03:44]} 9. h3 {[%emt
00:04:43]} cxd4 {[%emt 00:03:15]} 10. Bxd4 {[%emt 00:08:27]} Be7 {[%emt
00:01:24]} 11. Be2 {[%emt 00:01:46]} O-O {[%emt 00:02:59]} 12. O-O {[%emt
00:04:02]} b6 {[%emt 00:01:10]} 13. Qc2 {[%emt 00:11:51]} Bb7 {[%emt 00:02:59]}
14. Rad1 {[%emt 00:01:25]} Qc6 {[%emt 00:00:07]} 15. Rfe1 {[%emt 00:02:19]}
Rac8 {[%emt 00:09:18]} 16. Nh4 {[%emt 00:04:54]} Ba8 {[%emt 00:12:13]} 17. b3
{[%emt 00:02:48]} b5 {[%emt 00:04:59]} 18. Bf3 {[%emt 00:08:11]} Qc7 {[%emt
00:00:06]} 19. Bxa8 {[%emt 00:04:16]} Rxa8 {[%emt 00:00:04]} 20. Nf5 {[%emt
00:07:43]} Bb4 {[%emt 00:01:49]} 21. Ne3 {[%emt 00:00:38]} Qa5 {[%emt
00:05:02]} 22. f4 {[%emt 00:04:42]} Rfc8 {[%emt 00:04:52]} 23. Rf1 {[%emt
00:04:48]} Bc5 {[%emt 00:04:15]} 24. Bxc5 {[%emt 00:02:07]} Rxc5 {[%emt
00:04:52]} 25. Ne4 {[%emt 00:02:13]} Rc7 {[%emt 00:00:09]} 26. Qd2 {[%emt
00:01:37]} Qxd2 {[%emt 00:02:18]} 27. Nxf6+ {[%emt 00:01:29]} Nxf6 {[%emt
00:02:01]} 28. Rxd2 {[%emt 00:00:04]} Ne4 {[%emt 00:01:06]} 29. Rd4 {[%emt
00:00:40]} f5 {[%emt 00:01:44]} 30. Rfd1 {[%emt 00:01:13]} Kf8 {[%emt
00:01:02]} 31. g4 {[%emt 00:01:13]} g6 {[%emt 00:02:23]} 32. Rd8+ {[%emt
00:03:06]} Rxd8 {[%emt 00:00:30]} 33. Rxd8+ {[%emt 00:00:01]} Ke7 {[%emt
00:06:26]} 34. Ra8 {[%emt 00:04:14]} Rd7 {[%emt 00:02:22]} 35. Rxa6 {[%emt
00:01:03]} Rd3 {[%emt 00:00:06]} 36. Nf1 {[%emt 00:01:06]} bxc4 {[%emt
00:00:17]} 37. bxc4 {[%emt 00:00:40]} Rxh3 {[%emt 00:01:23]} 38. gxf5 {[%emt
00:01:18]} gxf5 {[%emt 00:00:22]} 39. a4 {[%emt 00:02:07]} Nc5 {[%emt
00:01:55]} 40. Ra7+ {[%emt 00:01:01]} Kd6 {[%emt 00:00:03]} 41. Kg2 {[%emt
00:02:41]} Rc3 {[%emt 00:00:34]} 42. a5 {[%emt 00:02:27]} Rxc4 {[%emt
00:00:53]} 43. Kf3 {[%emt 00:00:10]} Nd3 {[%emt 00:06:58]} 44. Nd2 {[%emt
00:02:09]} Ra4 {[%emt 00:00:33]} 45. Rxh7 {[%emt 00:07:18]} Nxf4 {[%emt
00:00:06]} 46. a6 {[%emt 00:01:28]} Nd5 {[%emt 00:00:43]} 47. Rh8 {[%emt
00:02:35]} Rxa6 {[%emt 00:01:59]} 48. Nc4+ {[%emt 00:00:03]} Kc5 {[%emt
00:00:13]} 49. Rc8+ {[%emt 00:01:09]} Kd4 {[%emt 00:00:20]} 50. Nd2 {[%emt
00:00:12]} Ra3+ {[%emt 00:00:25]} 51. Kf2 {[%emt 00:00:49]} Ra2 {[%emt
00:00:15]} 52. Ke1 {[%emt 00:00:09]} Kd3 {[%emt 00:01:04]} 53. Nb3 {[%emt
00:00:56]} Re2+ {[%emt 00:01:30]} 54. Kf1 {[%emt 00:00:09]} Ne3+ {[%emt
00:00:38]} 55. Kg1 {[%emt 00:00:01]} Rg2+ {[%emt 00:00:29]} 56. Kh1 {[%emt
00:00:01]} Rg6 {[%emt 00:00:21]} 57. Re8 {[%emt 00:01:23]} Ke4 {[%emt
00:01:37]} 58. Nc5+ {[%emt 00:00:42]} Ke5 {[%emt 00:03:51]} 59. Nd3+ {[%emt
00:00:45]} Kf6 {[%emt 00:02:06]} 60. Nf4 {[%emt 00:00:26]} Kf7 {[%emt
00:00:26]} 61. Ra8 {[%emt 00:00:45]} Rg4 {[%emt 00:00:21]} 62. Nxe6 {[%emt
00:00:19]} Kxe6 {[%emt 00:01:48]} 63. Re8+ {[%emt 00:00:02]} Kd5 {[%emt
00:00:01]} 64. Rxe3 f4 {[%emt 00:01:30]} 65. Ra3 {[%emt 00:00:34]} Rg8 {[%emt
00:00:03]} 66. Ra5+ {[%emt 00:00:48]} Ke4 {[%emt 00:00:02]} 67. Ra4+ {[%emt
00:00:16]} Kf3 {[%emt 00:00:05]} 68. Ra3+ {[%emt 00:00:07]} Kg4 {[%emt
00:00:09]} 69. Kg2 {[%emt 00:00:07]} Rb8 {[%emt 00:00:02]} 70. Ra2 {[%emt
00:01:02]} Rb3 {[%emt 00:00:02]} 71. Kf2 {[%emt 00:00:56]} Rf3+ {[%emt
00:01:24]} 72. Kg2 {[%emt 00:00:08]} Rc3 {[%emt 00:00:22]} 73. Kf2 {[%clk
00:01:56]} {[%emt 00:00:15]} Rh3 {[%clk 00:20:45]} {[%emt 00:00:49]} 74. Kg2
{[%clk 00:01:55]} {[%emt 00:00:31]} f3+ {[%clk 00:19:15]} {[%emt 00:02:00]} 75.
Kg1 {[%clk 00:02:20]} {[%emt 00:00:04]} Kg3 {[%clk 00:19:42]} {[%emt 00:00:04]}
76. Rg2+ {[%clk 00:02:42]} {[%emt 00:00:08]} Kf4 {[%clk 00:20:07]} {[%emt
00:00:05]} 77. Ra2 {[%clk 00:02:36]} {[%emt 00:00:36]} Rh8 {[%clk 00:20:32]}
{[%emt 00:00:06]} 78. Ra7 {[%clk 00:02:36]} {[%emt 00:00:30]} Re8 {[%clk
00:19:14]} {[%emt 00:01:48]} 79. Rf7+ {[%clk 00:02:35]} {[%emt 00:00:31]} Ke3
{[%clk 00:19:43]} {[%emt 00:00:01]} 80. Kf1 {[%emt 00:00:17]} Re4 {[%emt
00:00:07]} 81. Rf8 {[%clk 00:03:03]} {[%emt 00:00:15]} f2 {[%clk 00:19:47]}
{[%emt 00:00:49]} 82. Rxf2 {[%clk 00:03:23]} {[%emt 00:00:10]} Rf4 {[%clk
00:20:15]} {[%emt 00:00:02]} 83. Rxf4 {[%clk 00:03:47]} {[%emt 00:00:06]} Kxf4
{[%clk 00:20:43]} {[%emt 00:00:02]} 84. Kg2 {[%emt 00:00:28]} Ke5 {[%emt
00:00:01]} 1/2-1/2

[ePGN "0.1;DGT LiveChess/2.2.6"]

[Event "IV Elllobregat Open Chess Tmnt"]
[Site "Sant Boi de Llobregat, Spain"]
[Date "2023.12.01"]
[Round "2.1"]
[White "Fedoseev, Vladimir"]
[Black "Trost, Edvin"]
[Result "1-0"]
[TimeControl "90min/40moves + 15min/end + 30sec from move 1"]
[WhiteFideId "24130737"]
[BlackFideId "1729519"]
[WhiteElo "2675"]
[BlackElo "2440"]

1. d4 {[%clk 01:30:35]} {[%emt 00:00:24]} d5 {[%clk 01:30:47]} {[%emt
00:00:14]} 2. Nf3 {[%clk 01:30:25]} {[%emt 00:00:40]} Nf6 {[%clk 01:31:07]}
{[%emt 00:00:10]} 3. c4 {[%clk 01:30:46]} {[%emt 00:00:08]} e6 {[%clk
01:31:17]} {[%emt 00:00:21]} 4. cxd5 {[%clk 01:28:26]} {[%emt 00:02:49]} exd5
{[%clk 01:31:32]} {[%emt 00:00:16]} 5. Qc2 {[%clk 01:28:43]} {[%emt 00:00:12]}
c6 {[%clk 01:23:41]} {[%emt 00:08:23]} 6. Bg5 {[%clk 01:27:07]} {[%emt
00:02:05]} Be7 {[%clk 01:21:36]} {[%emt 00:02:35]} 7. e3 {[%clk 01:27:28]}
{[%emt 00:00:09]} Ne4 {[%clk 01:18:58]} {[%emt 00:03:08]} 8. Bxe7 {[%clk
01:21:36]} {[%emt 00:06:22]} Qxe7 {[%clk 01:19:16]} {[%emt 00:00:12]} 9. Bd3
{[%clk 01:20:07]} {[%emt 00:01:59]} Nd7 {[%clk 01:11:38]} {[%emt 00:08:09]} 10.
Nc3 {[%clk 01:17:54]} {[%emt 00:02:42]} Nd6 {[%clk 01:11:20]} {[%emt 00:00:49]}
11. O-O {[%clk 01:14:26]} {[%emt 00:03:57]} g6 {[%clk 01:04:36]} {[%emt
00:07:15]} 12. b4 {[%clk 01:14:42]} {[%emt 00:00:14]} a6 {[%clk 01:01:32]}
{[%emt 00:03:34]} 13. a4 {[%clk 01:14:49]} {[%emt 00:00:23]} Nb6 {[%clk
01:01:42]} {[%emt 00:00:20]} 14. b5 {[%clk 01:13:00]} {[%emt 00:02:20]} Nbc4
{[%clk 00:44:18]} {[%emt 00:17:53]} 15. bxc6 {[%clk 01:10:37]} {[%emt
00:02:54]} bxc6 {[%clk 00:44:43]} {[%emt 00:00:05]} 16. e4 {[%clk 01:10:59]}
{[%emt 00:00:07]} dxe4 {[%clk 00:36:34]} {[%emt 00:08:40]} 17. Nxe4 {[%clk
01:11:22]} {[%emt 00:00:07]} O-O {[%clk 00:35:30]} {[%emt 00:01:33]} 18. Rfe1
{[%clk 01:09:05]} {[%emt 00:02:48]} Na5 {[%clk 00:32:12]} {[%emt 00:03:49]} 19.
Qc5 {[%clk 01:08:10]} {[%emt 00:01:24]} Nab7 {[%clk 00:31:49]} {[%emt
00:00:54]} 20. Qxc6 {[%clk 01:08:17]} {[%emt 00:00:23]} Qd8 {[%clk 00:28:06]}
{[%emt 00:04:13]} 21. Rab1 {[%clk 01:00:18]} {[%emt 00:08:29]} Ra7 {[%clk
00:27:07]} {[%emt 00:01:30]} 22. Ne5 {[%clk 00:51:08]} {[%emt 00:09:39]} Nxe4
{[%clk 00:23:12]} {[%emt 00:04:25]} 23. Qxe4 {[%clk 00:50:31]} {[%emt
00:01:07]} Nd6 {[%clk 00:23:29]} {[%emt 00:00:13]} 24. Qf4 {[%clk 00:49:45]}
{[%emt 00:01:14]} Rc7 {[%clk 00:18:17]} {[%emt 00:05:43]} 25. Rbc1 {[%clk
00:48:40]} {[%emt 00:01:35]} Bb7 {[%clk 00:17:09]} {[%emt 00:01:38]} 26. h4
{[%clk 00:48:09]} {[%emt 00:01:01]} h5 {[%clk 00:15:34]} {[%emt 00:02:05]} 27.
Rc5 {[%clk 00:46:31]} {[%emt 00:02:07]} Re8 {[%clk 00:12:35]} {[%emt 00:03:30]}
28. Re3 {[%clk 00:46:02]} {[%emt 00:00:59]} Rce7 {[%clk 00:10:06]} {[%emt
00:02:59]} 29. Rg3 {[%clk 00:45:25]} {[%emt 00:01:06]} Re6 {[%clk 00:05:15]}
{[%emt 00:05:22]} 30. Nxg6 {[%clk 00:42:11]} {[%emt 00:03:43]} fxg6 {[%clk
00:05:04]} {[%emt 00:00:41]} 31. Bxg6 {[%clk 00:42:36]} {[%emt 00:00:06]} Rf6
{[%clk 00:03:08]} {[%emt 00:02:27]} 32. Bxe8+ {[%clk 00:42:57]} {[%emt
00:00:08]} Kf8 {[%clk 00:03:36]} {[%emt 00:00:01]} 33. Qg5 {[%clk 00:43:07]}
{[%emt 00:00:20]} Kxe8 {[%clk 00:03:02]} {[%emt 00:01:04]} 34. Qg8+ {[%clk
00:42:56]} {[%emt 00:00:41]} Ke7 {[%clk 00:03:23]} {[%emt 00:00:10]} 35. Re5+
{[%clk 00:43:11]} {[%emt 00:00:14]} Kd7 {[%clk 00:03:46]} {[%emt 00:00:07]} 36.
Rg7+ {[%clk 00:43:38]} {[%emt 00:00:03]} Kc8 {[%clk 00:03:44]} {[%emt
00:00:31]} 37. Rc5+ {[%clk 00:44:04]} {[%emt 00:00:04]} 1-0

[Event "IV Elllobregat Open Chess Tmnt"]
[Site "Sant Boi de Llobregat, Spain"]
[Date "2023.12.01"]
[Round "2.2"]
[White "Heimann, Mark"]
[Black "Alekseenko, Kirill"]
[Result "0-1"]
[TimeControl "90min/40moves + 15min/end + 30sec from move 1"]
[WhiteFideId "2028441"]
[BlackFideId "4135539"]
[WhiteElo "2440"]
[BlackElo "2670"]

1. d4 {[%clk 01:30:05]} {[%emt 00:00:54]} Nf6 {[%clk 01:30:32]} {[%emt
00:00:28]} 2. c4 {[%clk 01:30:31]} {[%emt 00:00:04]} e6 {[%clk 01:30:37]}
{[%emt 00:00:25]} 3. Nc3 {[%clk 01:30:55]} {[%emt 00:00:07]} Bb4 {[%clk
01:30:25]} {[%emt 00:00:41]} 4. Qc2 {[%clk 01:31:18]} {[%emt 00:00:07]} d5
{[%clk 01:29:16]} {[%emt 00:01:39]} 5. a3 {[%clk 01:31:35]} {[%emt 00:00:13]}
Bxc3+ {[%clk 01:29:21]} {[%emt 00:00:24]} 6. Qxc3 {[%clk 01:32:00]} {[%emt
00:00:05]} O-O {[%clk 01:24:50]} {[%emt 00:05:01]} 7. Nf3 {[%clk 01:32:21]}
{[%emt 00:00:10]} Nbd7 {[%clk 01:24:37]} {[%emt 00:00:42]} 8. e3 {[%clk
01:31:32]} {[%emt 00:01:19]} dxc4 {[%clk 01:18:16]} {[%emt 00:06:51]} 9. Bxc4
{[%clk 01:24:11]} {[%emt 00:07:51]} b6 {[%clk 01:18:41]} {[%emt 00:00:05]} 10.
O-O {[%clk 01:23:19]} {[%emt 00:01:22]} Bb7 {[%clk 01:16:01]} {[%emt 00:03:11]}
11. Be2 {[%clk 01:23:28]} {[%emt 00:00:21]} c5 {[%clk 01:13:53]} {[%emt
00:02:38]} 12. b4 {[%clk 01:16:56]} {[%emt 00:07:02]} cxb4 {[%clk 01:10:07]}
{[%emt 00:04:16]} 13. Qxb4 {[%clk 01:13:44]} {[%emt 00:03:42]} a5 {[%clk
01:08:09]} {[%emt 00:02:28]} 14. Qb2 {[%clk 01:12:05]} {[%emt 00:02:09]} Qb8
{[%clk 00:59:23]} {[%emt 00:09:17]} 15. h3 {[%clk 01:05:36]} {[%emt 00:06:59]}
Qa7 {[%clk 00:54:00]} {[%emt 00:05:54]} 16. a4 {[%clk 00:52:53]} {[%emt
00:13:13]} Rfc8 {[%clk 00:49:42]} {[%emt 00:04:48]} 17. Bd2 {[%clk 00:41:40]}
{[%emt 00:11:42]} Ba6 {[%clk 00:49:28]} {[%emt 00:00:44]} 18. Bb5 {[%clk
00:38:45]} {[%emt 00:03:25]} Bxb5 {[%clk 00:48:59]} {[%emt 00:01:00]} 19. Qxb5
{[%clk 00:39:09]} {[%emt 00:00:05]} Qb7 {[%clk 00:46:02]} {[%emt 00:03:27]} 20.
Rfc1 {[%clk 00:37:32]} {[%emt 00:02:08]} Ne4 {[%clk 00:45:11]} {[%emt
00:01:21]} 21. Rab1 {[%clk 00:32:09]} {[%emt 00:05:54]} Nd6 {[%clk 00:42:07]}
{[%emt 00:03:34]} 22. Qb3 {[%clk 00:29:53]} {[%emt 00:02:46]} Rxc1+ {[%clk
00:39:28]} 23. Bxc1 {[%clk 00:29:48]} {[%emt 00:03:42]} Rc8 {[%clk 00:38:21]}
{[%emt 00:01:37]} 24. Nd2 {[%clk 00:27:16]} {[%emt 00:03:02]} Ne4 {[%clk
00:32:39]} {[%emt 00:06:13]} 25. Nxe4 {[%clk 00:27:22]} {[%emt 00:00:24]} Qxe4
{[%clk 00:32:13]} {[%emt 00:00:55]} 26. Ba3 {[%clk 00:27:46]} {[%emt 00:00:06]}
h6 {[%clk 00:29:30]} {[%emt 00:03:13]} 27. Qb5 {[%clk 00:25:04]} {[%emt
00:03:12]} Rc3 {[%clk 00:26:56]} {[%emt 00:03:04]} 28. Be7 {[%clk 00:20:44]}
{[%emt 00:04:51]} f6 {[%clk 00:21:03]} {[%emt 00:06:22]} 29. Rb3 {[%clk
00:10:51]} {[%emt 00:10:23]} Rc1+ {[%clk 00:17:20]} {[%emt 00:04:13]} 30. Kh2
{[%clk 00:11:17]} {[%emt 00:00:03]} Qc6 {[%clk 00:17:00]} {[%emt 00:00:50]} 31.
e4 {[%clk 00:06:31]} {[%emt 00:05:17]} Qxb5 {[%clk 00:14:38]} {[%emt 00:02:52]}
32. Rxb5 {[%clk 00:06:56]} {[%emt 00:00:05]} Rc4 {[%clk 00:14:30]} {[%emt
00:00:38]} 33. d5 {[%clk 00:07:01]} {[%emt 00:00:25]} e5 {[%clk 00:12:19]}
{[%emt 00:02:40]} 34. Bd8 {[%clk 00:06:56]} {[%emt 00:00:35]} Rb4 {[%clk
00:10:40]} {[%emt 00:02:09]} 35. Be7 {[%clk 00:03:52]} {[%emt 00:03:35]} Rxe4
{[%clk 00:11:00]} {[%emt 00:00:10]} 36. Rb2 {[%clk 00:04:14]} {[%emt 00:00:08]}
Rxa4 {[%clk 00:10:21]} {[%emt 00:01:09]} 37. Rc2 {[%clk 00:04:36]} {[%emt
00:00:08]} Rd4 {[%clk 00:10:45]} {[%emt 00:00:06]} 38. d6 {[%clk 00:04:52]}
{[%emt 00:00:14]} Kf7 {[%clk 00:10:59]} {[%emt 00:00:16]} 39. Rc8 {[%clk
00:05:02]} {[%emt 00:00:19]} a4 {[%clk 00:10:44]} {[%emt 00:00:45]} 40. Rd8
{[%clk 00:20:23]} {[%emt 00:00:09]} Ke6 {[%clk 00:25:52]} {[%emt 00:00:22]} 41.
Re8 {[%clk 00:20:42]} {[%emt 00:00:12]} a3 {[%clk 00:25:28]} {[%emt 00:00:54]}
42. Bd8+ {[%clk 00:20:41]} {[%emt 00:00:30]} Kd5 {[%clk 00:25:31]} {[%emt
00:00:27]} 0-1

[Event "IV Elllobregat Open Chess Tmnt"]
[Site "Sant Boi de Llobregat, Spain"]
[Date "2023.12.01"]
[Round "2.3"]
[White "Narayanan, SL"]
[Black "Movsziszian, Karen"]
[Result "1-0"]
[TimeControl "90min/40moves + 15min/end + 30sec from move 1"]
[WhiteFideId "5058422"]
[BlackFideId "13301152"]
[WhiteElo "2668"]
[BlackElo "2435"]

1. e4 {[%clk 01:30:57]} {[%emt 00:00:02]} d6 {[%clk 01:30:26]} {[%emt
00:00:35]} 2. d4 {[%clk 01:31:20]} {[%emt 00:00:06]} Nf6 {[%clk 01:30:53]}
{[%emt 00:00:04]} 3. Nc3 {[%clk 01:31:44]} {[%emt 00:00:06]} e5 {[%clk
01:31:19]} {[%emt 00:00:03]} 4. Nf3 {[%clk 01:31:59]} {[%emt 00:00:14]} Nbd7
{[%clk 01:31:44]} {[%emt 00:00:06]} 5. Bc4 {[%clk 01:32:22]} {[%emt 00:00:07]}
Be7 {[%clk 01:32:11]} {[%emt 00:00:03]} 6. O-O {[%clk 01:32:38]} {[%emt
00:00:13]} O-O {[%clk 01:32:36]} {[%emt 00:00:06]} 7. a4 {[%clk 01:32:36]}
{[%emt 00:00:33]} c6 {[%clk 01:32:48]} {[%emt 00:00:19]} 8. h3 {[%clk
01:30:34]} {[%emt 00:02:31]} h6 {[%clk 01:33:00]} {[%emt 00:00:18]} 9. Ba2
{[%clk 01:27:55]} {[%emt 00:03:08]} Re8 {[%clk 01:30:46]} {[%emt 00:02:45]} 10.
Be3 {[%clk 01:23:41]} {[%emt 00:04:43]} exd4 {[%clk 01:27:05]} {[%emt
00:04:12]} 11. Bxd4 {[%clk 01:22:06]} {[%emt 00:02:05]} Nf8 {[%clk 01:24:44]}
{[%emt 00:02:50]} 12. Re1 {[%clk 01:07:18]} {[%emt 00:15:17]} Be6 {[%clk
01:21:27]} {[%emt 00:03:48]} 13. Bxe6 {[%clk 01:04:36]} {[%emt 00:03:12]} Nxe6
{[%clk 01:21:54]} {[%emt 00:00:03]} 14. Be3 {[%clk 01:04:55]} {[%emt 00:00:11]}
Qc7 {[%clk 01:21:42]} {[%emt 00:00:43]} 15. a5 {[%clk 01:01:13]} {[%emt
00:04:12]} b5 {[%clk 01:18:49]} {[%emt 00:03:23]} 16. axb6 {[%clk 00:53:37]}
{[%emt 00:08:07]} axb6 {[%clk 01:17:24]} {[%emt 00:01:55]} 17. Rxa8 {[%clk
00:52:29]} {[%emt 00:01:38]} Rxa8 {[%clk 01:17:52]} {[%emt 00:00:02]} 18. Nh4
{[%clk 00:52:14]} {[%emt 00:00:44]} b5 {[%clk 01:03:10]} {[%emt 00:15:13]} 19.
Nf5 {[%clk 00:49:46]} {[%emt 00:02:57]} b4 {[%clk 00:56:56]} {[%emt 00:06:44]}
20. Nd5 {[%clk 00:46:06]} {[%emt 00:04:09]} cxd5 {[%clk 00:57:07]} {[%emt
00:00:20]} 21. exd5 {[%clk 00:46:28]} {[%emt 00:00:08]} Ra5 {[%clk 00:41:50]}
{[%emt 00:15:47]} 22. Nxe7+ {[%clk 00:45:40]} {[%emt 00:01:18]} Qxe7 {[%clk
00:42:19]} {[%emt 00:00:02]} 23. dxe6 {[%clk 00:46:00]} {[%emt 00:00:09]} fxe6
{[%clk 00:42:46]} {[%emt 00:00:04]} 24. Qd4 {[%clk 00:43:47]} {[%emt 00:02:42]}
Nd5 {[%clk 00:40:14]} {[%emt 00:03:02]} 25. Bd2 {[%clk 00:43:20]} {[%emt
00:00:57]} Rb5 {[%clk 00:32:28]} {[%emt 00:08:17]} 26. Qg4 {[%clk 00:40:20]}
{[%emt 00:03:29]} Kf7 {[%clk 00:28:52]} {[%emt 00:04:07]} 27. Qh5+ {[%clk
00:40:10]} {[%emt 00:00:40]} Kf8 {[%clk 00:28:12]} {[%emt 00:01:09]} 28. Qg6
{[%clk 00:35:31]} {[%emt 00:05:09]} Nf6 {[%clk 00:28:27]} {[%emt 00:00:16]} 29.
Ra1 {[%clk 00:33:47]} {[%emt 00:02:14]} Rb8 {[%clk 00:19:56]} {[%emt 00:08:59]}
30. Be3 {[%clk 00:32:04]} {[%emt 00:02:14]} Nd5 {[%clk 00:15:04]} {[%emt
00:05:22]} 31. Qh7 {[%clk 00:24:33]} {[%emt 00:08:02]} Nf6 {[%clk 00:15:01]}
{[%emt 00:00:34]} 32. Qd3 {[%clk 00:23:05]} {[%emt 00:01:58]} Rc8 {[%clk
00:10:15]} {[%emt 00:05:15]} 33. Ra4 {[%clk 00:12:04]} {[%emt 00:11:31]} Nd5
{[%clk 00:06:32]} {[%emt 00:04:14]} 34. Qh7 {[%clk 00:10:58]} {[%emt 00:01:36]}
Qf7 {[%clk 00:02:50]} {[%emt 00:04:13]} 35. Ra7 {[%clk 00:10:52]} {[%emt
00:00:36]} Qg8 {[%clk 00:00:31]} {[%emt 00:02:49]} 36. Qe4 {[%clk 00:10:15]}
{[%emt 00:01:06]} Re8 {[%clk 00:00:44]} {[%emt 00:00:18]} 37. Qf3+ {[%clk
00:09:50]} {[%emt 00:00:54]} Nf6 {[%clk 00:01:11]} {[%emt 00:00:03]} 38. Bxh6
{[%clk 00:10:13]} {[%emt 00:00:07]} 1-0